Cogmind - Beta 13 @@@ ROGUE MODE // 2024.04.01 @ 21:01:07 Player: chexo4 Result: Destroyed by G-34 Mercenary with Small Laser Performance ------------- Evolutions (1) 500 Regions Visited (5) 1000 Robots Destroyed (15) 75 Value Destroyed (371) 371 Prototype IDs (1) 20 Alien Tech Used (0) 0 Bonus (168) 168 TOTAL SCORE: 2134 Bonus ------- Entered Garrisons 200 Used RIF Installer 500 Friendly Fire -532 Cogmind --------- Core Integrity 0/400 Matter 273/300 Energy 100/100 System Corruption 6% Temperature Cool (6) Movement Walking (190) Ox1 Location -9/Garrison Parts ------- > --- POWER (2) -------- (None) > --- PROPULSION (2) --- Aluminum Leg > --- UTILITY (3) ------ Large Storage Unit > --- WEAPON (2) ------- (None) > --- INVENTORY (15) --- Cesium-ion Thruster Improved Terrain Scanner Drone Bay (2/2) Drone Bay (2/2) Drone Bay (2/2) Drone Bay (2/2) Drone Bay (2/2) Drone Bay (2/2) Small Laser Assault Rifle Light Assault Rifle Rocket Launcher Great Maul Peak State ------------ > --- POWER ------------ (None) > --- PROPULSION ------- Aluminum Leg > --- UTILITY ---------- Large Storage Unit Drone Bay Drone Bay > --- WEAPON ----------- Heavy Assault Rifle Rocket Launcher > --- INVENTORY -------- Cesium-ion Thruster Improved Terrain Scanner Drone Bay Drone Bay Drone Bay Drone Bay Drone Bay Drone Bay Small Laser Assault Rifle Light Assault Rifle Rocket Launcher Great Maul [Rating: 20] Favorites ----------- Power Ion Engine Engine Ion Engine Propulsion Aluminum Leg Leg Aluminum Leg Flight Unit Cesium-ion Thruster Utility Large Storage Unit Device Drone Bay Storage Large Storage Unit Protection Medium Armor Plating Weapon Great Maul Energy Gun Small Laser Ballistic Gun Heavy Assault Rifle Launcher Rocket Launcher Impact Weapon Great Maul Special Melee Weapon Datajack Build | -11 -10 -10 -9 -9 -9 ------- Run | Yrd Mat Min Mat Sto Gar Slots Evolved 2 | . . . 2 . . Power 1 | . . . 1 . . Propulsion . | . . . . . . Utility 1 | . . . 1 . . Weapon . | . . . . . . Parts Attached 28 | 6 5 2 9 6 . Power 1 | 1 . . . . . Engine 1 | 1 . . . . . Core . | . . . . . . Reactor . | . . . . . . Propulsion 8 | 2 . . 5 1 . Treads . | . . . . . . Leg 6 | 2 . . 3 1 . Wheel . | . . . . . . Hover . | . . . . . . Flight 2 | . . . 2 . . Utility 8 | 2 2 . 2 2 . Device 5 | 1 1 . 1 2 . Storage 2 | 1 1 . . . . Processor . | . . . . . . Hackware . | . . . . . . Protection 1 | . . . 1 . . Artifact . | . . . . . . Weapon 11 | 1 3 2 2 3 . Energy Gun 2 | . 1 1 . . . Energy Cannon . | . . . . . . Ballistic Gun 5 | 1 1 . 1 2 . Ballistic Cannon . | . . . . . . Launcher 2 | . . 1 . 1 . Special Weapon . | . . . . . . Impact Weapon 1 | . . . 1 . . Slashing Weapon . | . . . . . . Piercing Weapon . | . . . . . . Special Melee Weapon 1 | . 1 . . . . Unidentified Prototypes 1 | . . . 1 . . Corrupted Parts 1 | . . . . 1 . System Corruption 6 | . . . . 6 . Parts Lost 12 | . 2 . 2 4 4 Power 1 | . . . . 1 . Propulsion 2 | . . . 1 1 . Utility 5 | . 1 . 1 1 2 Weapon 4 | . 1 . . 1 2 Highest Loss Streak 4 | . 2 . 1 4 3 To Critical Strikes . | . . . . . . Average Slot Usage (%) 64 | . 87 85 74 48 63 Engine 6 | . 14 14 11 2 . Leg 12 | . 28 28 16 3 11 Device 8 | . 7 . 7 9 19 Storage 11 | . 14 14 11 11 11 Protection 1 | . . . 6 . . Energy Gun 2 | . 4 14 3 . . Ballistic Gun 10 | . 14 12 7 10 11 Launcher 4 | . . 1 3 5 11 Impact Weapon 4 | . . . 7 6 . Naked Turns . | . . . . . . Heaviest Build 40 | 13 27 30 40 39 39 Greatest Support 23 | 20 20 20 23 13 10 Greatest Overweight (x) 12 | . 1 1 9 12 3 Average Overweight (x) 2 | . . 1 1 5 3 Largest Inventory Capacity 15 | 8 15 15 15 15 15 Average Capacity 14 | 7 10 15 15 15 15 Most Carried 14 | 5 3 3 8 14 13 Average Carried 6 | . 1 2 5 8 13 Final Capacity 15 | 8 15 15 15 15 15 Final Carried 13 | . 2 3 6 13 13 Class Distribution -------------------- 100% | Mutant Dominant Class ---------------- Mutant | -10/Materials Mutant | -10/Mines Mutant | -9/Materials Mutant | -9/Storage Mutant | -9/Garrison Resources | -11 -10 -10 -9 -9 -9 ----------- Run | Yrd Mat Min Mat Sto Gar Matter Collected 470 | 284 52 . 111 23 . Remotely . | . . . . . . Salvage Created 479 | 84 72 . 196 127 . Parts 26 | 5 3 . 8 10 . Haulers Intercepted 1 | . . . 1 . . Recyclers Shooed . | . . . . . . Parts Field Recycled . | . . . . . . Retrieved Matter . | . . . . . . Parts Self-Destructed . | . . . . . . Prevented . | . . . . . . Kills | -11 -10 -10 -9 -9 -9 ------- Run | Yrd Mat Min Mat Sto Gar Combat Hostiles Destroyed 11 | . 2 . 6 3 . Melee 6 | . . . 5 1 . Guns 4 | . 2 . . 2 . Classes Destroyed 8 | 2 1 . 4 1 . Worker 1 | . . . 1 . . Tunneler 1 | 1 . . . . . Hauler 1 | . . . 1 . . Recycler 1 | 1 . . . . . Drone 3 | . . . . 3 . Swarmer 4 | . . . 4 . . Grunt 3 | . 2 . . 1 . Sentry 4 | . . . 2 2 . Best Kill Streak 4 | 1 1 . 4 1 . Combat Bots Only 3 | . 1 . 3 1 . Max Kills in Single Turn 3 | 1 1 . 1 3 . Gunslinging . | . . . . . . Exploded . | . . . . . . Melee 1 | . . . 1 1 . Uniques/NPCs Destroyed . | . . . . . . Combat | -11 -10 -10 -9 -9 -9 -------- Run | Yrd Mat Min Mat Sto Gar Hostile Shots Fired 214 | . 44 . 51 50 69 Missed 57 | . 13 . 13 16 15 Damage Taken 1960 | . 416 . 442 507 595 Core 488 | . 87 . 96 137 168 Absorbed by Shields . | . . . . . . Core Remaining (%) 82 | 100 . 65 . . . Volleys Fired 37 | 8 18 . 2 9 . Largest 2 | 1 2 . 1 2 . Hottest 60 | 20 60 . 23 56 . Shots Fired 42 | 8 20 . 2 12 . Gun 39 | 8 20 . 2 9 . Cannon . | . . . . . . Launcher 3 | . . . . 3 . Special . | . . . . . . Kinetic 37 | 8 18 . 2 9 . Thermal 2 | . 2 . . . . Explosive 3 | . . . . 3 . Electromagnetic . | . . . . . . Robot Hit Streak 5 | 3 5 . 1 4 . Robot Miss Streak 4 | 2 3 . 3 4 . Penetration Max . | . . . . . . Secondary Targets . | . . . . . . Shots Hit Robots 50 | 5 18 . 16 11 . Core Hits 24 | 2 5 1 5 7 4 Critical Kills . | . . . . . . Critical Parts Destroyed 4 | . . . 4 . . Critical Strikes 4 | . . . 4 . . Smash 4 | . . . 4 . . Melee Attacks 31 | . 6 . 19 6 . Impact 25 | . . . 19 6 . Slashing . | . . . . . . Piercing . | . . . . . . Sneak Attacks 5 | . 3 . 2 . . Combat Hostiles . | . . . . . . Follow-up Attacks . | . . . . . . Damage Inflicted 1548 | 58 145 11 746 565 23 Guns 274 | 58 132 . 16 68 . Cannons . | . . . . . . Explosions 270 | . . . . 270 . Melee 957 | . . . 730 227 . Ramming 47 | . 13 11 . . 23 Kinetic 262 | 58 120 . 16 68 . Thermal 12 | . 12 . . . . Explosive 270 | . . . . 270 . Electromagnetic . | . . . . . . Impact 957 | . . . 730 227 . Slashing . | . . . . . . Piercing . | . . . . . . Highest Corruption 6 | . 6 6 . 6 6 Average Corruption 5 | . 3 6 . 6 6 Corruption Purged . | . . . . . . Corruption Blocked . | . . . . . . Effects 17 | . 3 3 . 4 7 Message Errors 7 | . 2 1 . . 4 Matter Fused 3 | . . . . 3 . Heat Flow Errors 3 | . 1 1 . . 1 Energy Discharges 1 | . . . . . 1 Data Loss (minor) 2 | . . 1 . 1 . Data Loss (major) 1 | . . . . . 1 Overload Shots . | . . . . . . Overflow Damage 330 | . . . 218 112 . Projectiles . | . . . . . . Explosions 59 | . . . . 59 . Melee 271 | . . . 218 53 . Knockbacks 1 | . . . 1 . . Impact 1 | . . . 1 . . Kinetic . | . . . . . . Secondary . | . . . . . . Self-Inflicted Damage 62 | . . . . 62 . Shots 2 | . . . . 2 . Rammed . | . . . . . . Targets Rammed 28 | . 7 3 . . 18 Kicked 28 | . 7 3 . . 18 Crushed . | . . . . . . Highest Temperature 264 | . 183 234 . . 264 Average Temperature 104 | . 81 120 . . 139 Received Heat Transfer 843 | . 249 . 87 183 324 Effects 1 | . . . . . 1 Energy Bleed 1 | . . . . . 1 Siege Activations . | . . . . . . Robots Corrupted . | . . . . . . Combat Hostiles . | . . . . . . Parts Fried 4 | . . . 3 1 . Impact Corruptions 9 | . . . 8 1 . Robots Melted . | . . . . . . Combat Hostiles . | . . . . . . Parts Melted . | . . . . . . Heat Transferred 25 | . 25 . . . . Parts Sabotaged . | . . . . . . Parts Stolen . | . . . . . . Parts Stripped . | . . . . . . Power Chain Reactions . | . . . . . . Alert | -11 -10 -10 -9 -9 -9 ------- Run | Yrd Mat Min Mat Sto Gar Peak Influence 193 | 10 52 19 193 168 2 Initial 76 | . 6 19 7 76 2 Average 33 | 5 28 19 37 41 1 Maximum Alert Level . | . . . . . . Low Security (%) 100 | 100 100 100 100 100 100 Level 1 . | . . . . . . Level 2 . | . . . . . . Level 3 . | . . . . . . Level 4 . | . . . . . . Level 5 . | . . . . . . High Security . | . . . . . . Max Security . | . . . . . . Squads Dispatched 2 | . 1 . 1 . . Investigation 1 | . 1 . . . . Extermination . | . . . . . . Reinforcement 1 | . . . 1 . . Assault . | . . . . . . Garrison . | . . . . . . Intercept . | . . . . . . Searches Triggered . | . . . . . . Construction Impeded . | . . . . . . Haulers Reinforced . | . . . . . . Active Scanning Responses . | . . . . . . Cargo Convoy Interrupts . | . . . . . . Stealth | -11 -10 -10 -9 -9 -9 --------- Run | Yrd Mat Min Mat Sto Gar Distress Signals 6 | . 1 . 4 1 . Communications Jammed . | . . . . . . Distress Signals . | . . . . . . Times Spotted 30 | . 6 . 14 7 3 Peak Tracking Total 8 | . 3 . 8 2 3 Tactical Retreats 4 | . . . 1 3 . Traps | -11 -10 -10 -9 -9 -9 ------- Run | Yrd Mat Min Mat Sto Gar Traps Triggered 5 | . 4 . . . 1 Indirectly . | . . . . . . Trap Hack Attempts . | . . . . . . Triggered . | . . . . . . Disarmed . | . . . . . . Reprogrammed . | . . . . . . Reused . | . . . . . . Traps Extracted . | . . . . . . Installed . | . . . . . . Triggered . | . . . . . . Machines | -11 -10 -10 -9 -9 -9 ---------- Run | Yrd Mat Min Mat Sto Gar Machines Disabled 2 | . . . . 2 . Max in Single Turn 1 | . . . . 1 . Machines Repaired . | . . . . . . Machines Dismantled . | . . . . . . Machines Sabotaged . | . . . . . . Overloaded Fab Kills . | . . . . . . Hacking | -11 -10 -10 -9 -9 -9 --------- Run | Yrd Mat Min Mat Sto Gar Machines Accessed 7 | . 2 . 1 4 . Terminals 5 | . 2 . . 3 . Fabricators . | . . . . . . Repair Stations . | . . . . . . Recycling Units . | . . . . . . Scanalyzers 1 | . . . 1 . . Garrison Access 1 | . . . . 1 . Total Hacks 17 | . 3 . 2 12 . Successful 11 | . 1 . 2 8 . Failed 6 | . 2 . . 4 . Catastrophic 1 | . . . . 1 . Database Lockouts . | . . . . . . Manual . | . . . . . . Terminals 13 | . 3 . . 10 . Fabricators . | . . . . . . Repair Stations . | . . . . . . Recycling Units . | . . . . . . Scanalyzers 2 | . . . 2 . . Garrison Access 2 | . . . . 2 . Terminal Hacks 8 | . 1 . . 7 . Record 4 | . 1 . . 3 . Open Door 1 | . . . . 1 . Repair Station Index 1 | . . . . 1 . Alert Level 1 | . . . . 1 . Locate Traps 1 | . . . . 1 . Fabricator Hacks . | . . . . . . Repair Station Hacks . | . . . . . . Recycling Unit Hacks . | . . . . . . Scanalyzer 2 | . . . 2 . . Insert Component 1 | . . . 1 . . Analyze 1 | . . . 1 . . Garrison Access Hacks 1 | . . . . 1 . Unlock Access 1 | . . . . 1 . Unauthorized Hacks . | . . . . . . Terminals . | . . . . . . Fabricators . | . . . . . . Repair Stations . | . . . . . . Recycling Units . | . . . . . . Scanalyzers . | . . . . . . Garrison Access . | . . . . . . Data Cores Recovered . | . . . . . . Used . | . . . . . . Hacking Detections 4 | . 1 . 1 2 . Full Trace Events 2 | . 1 . . 1 . Feedback Events . | . . . . . . Feedback Blocked . | . . . . . . Robot Schematics Acquired . | . . . . . . Robots Built . | . . . . . . Authchips . | . . . . . . Time . | . . . . . . Total Robot Build Rating . | . . . . . . Part Schematics Acquired 1 | . . . 1 . . Parts Built . | . . . . . . Authchips . | . . . . . . Time . | . . . . . . Total Part Build Rating . | . . . . . . Parts Repaired . | . . . . . . Time . | . . . . . . Parts Recycled . | . . . . . . Recycled Matter . | . . . . . . Retrieved Matter . | . . . . . . Retrieved Components . | . . . . . . Parts Scanalyzed 1 | . . . 1 . . Part Schematics Acquired 1 | . . . 1 . . Parts Damaged 1 | . . . 1 . . Bothacking | -11 -10 -10 -9 -9 -9 ------------ Run | Yrd Mat Min Mat Sto Gar Used RIF Installer 1 | . . . . . 1 Robots Hacked 3 | . 3 . . . . Non-combat 2 | . 2 . . . . Combat 1 | . 1 . . . . Robot Hacks Applied 5 | . 5 . . . . parse_system 3 | . 3 . . . . no_distress 1 | . 1 . . . . find_recycling 1 | . 1 . . . . Relay Couplers Released . | . . . . . . Fabnet Peak Effective % . | . . . . . . Robots Rewired . | . . . . . . Allies Hacked . | . . . . . . Hacks Repelled . | . . . . . . Allies | -11 -10 -10 -9 -9 -9 -------- Run | Yrd Mat Min Mat Sto Gar Total Allies . | . . . . . . Largest Group . | . . . . . . Highest-Rated Group . | . . . . . . Highest-Rated Ally . | . . . . . . Total Orders . | . . . . . . Ally Attacks . | . . . . . . Total Damage . | . . . . . . Kills . | . . . . . . Allies Corrupted . | . . . . . . Allies Melted . | . . . . . . Intel | -11 -10 -10 -9 -9 -9 ------- Run | Yrd Mat Min Mat Sto Gar Robot Analysis Total . | . . . . . . Derelict Logs Recovered . | . . . . . . Drone Launches 4 | . . . . 4 . Drone Recoveries 1 | . . . . 1 . Exploration | -11 -10 -10 -9 -9 -9 ------------- Run | Yrd Mat Min Mat Sto Gar Turns Passed 2306 | 77 294 92 656 996 191 Spaces Moved 805 | 53 162 44 260 244 42 Core 143 | 20 . . 2 121 . Treads . | . . . . . . Legs 653 | 33 162 44 249 123 42 Wheels . | . . . . . . Hover . | . . . . . . Flight 9 | . . . 9 . . Fastest Speed 50 | 50 120 190 190 260 330 Average Speed 250 | 93 141 190 220 386 330 Slowest Speed 650 | 120 190 190 500 650 330 Overloaded Moves . | . . . . . . Propulsion Burnouts . | . . . . . . Robots Hopped . | . . . . . . Cave-ins Triggered . | . . . . . . Exploration Rate (%) 16 | 3 29 6 19 31 11 Regions Visited 5 Branch Regions 2 Pre-discovered Areas . | . . . . . . Known Exits Taken 1 | . . . . 1 . Unknown Exits Taken 4 | 1 1 1 1 . . Scrap Searched . | . . . . . . Spaces Dug . | . . . . . . Terrain Destroyed 29 | . . . . 29 . Melee . | . . . . . . Projectile . | . . . . . . AOE 29 | . . . . 29 . Terrain Rammed . | . . . . . . Walls Destroyed . | . . . . . . Machines Disabled . | . . . . . . Actions | -11 -10 -10 -9 -9 -9 --------- Run | Yrd Mat Min Mat Sto Gar Total 964 | 72 203 49 305 275 60 Wait . | . . . . . . Move 800 | 52 161 43 259 243 42 Hop . | . . . . . . Pick Up 33 | 6 5 1 10 11 . Fast Attach . | . . . . . . Attach 18 | 6 2 . 6 4 . Detach 1 | . . . 1 . . Swap 10 | . 3 2 3 2 . Drop 6 | . 1 . 5 . . Fire 37 | 8 18 . 2 9 . Melee 31 | . 6 . 19 6 . Ram . | . . . . . . Kick 28 | . 7 3 . . 18 Crush . | . . . . . . Escape Stasis . | . . . . . . Rewire . | . . . . . . Trap . | . . . . . . Miscellaneous . | . . . . . . Route ------- -11/Scrapyard -10/Materials -10/Mines -9/Materials -9/Storage (discovered 2 exits: [Rec] / Gar) -9/Garrison History --------- Turn | Location | Event 3 | -11/Scrapyard | Discovered new exit (range 16) 78 | -11/Scrapyard | Entered Materials 301 | -10/Materials | Build established: Mutant 344 | -10/Materials | Discovered new exit (range 7) 372 | -10/Materials | Entered Mines 437 | -10/Mines | Discovered new exit (range 8) 444 | -10/Mines | Received a Rocket Launcher from a helpful Derelict 464 | -10/Mines | Entered Materials 464 | -9/Materials | Evolved 2 slots: Power x1, Utility x1 1079 | -9/Materials | Discovered new exit (range 5) 1120 | -9/Materials | Entered Storage 1334 | -9/Storage | Discovered new exit (range 15) 1364 | -9/Storage | Core integrity fell below 50% 1384 | -9/Storage | Lost 4 parts (1p1n1u1w) 1942 | -9/Storage | Lost 3 allies 2113 | -9/Storage | Identified exit to Garrison 2116 | -9/Storage | Entered Garrison 2212 | -9/Garrison | Triggered checkpoint 2254 | -9/Garrison | Installed Relay Interface Framework 2292 | -9/Garrison | Core integrity fell below 20% 2307 | -9/Garrison | Destroyed by G-34 Mercenary with Small Laser Last Messages --------------- With RIF installed, you can review your current list of abilities via the new button at the top-right of the HUD, or Spacebar+i. Kicked G-34 Mercenary. Drone Bay destroyed. Kicked G-34 Mercenary. System corrupted: Substantial component data lost. Kicked G-34 Mercenary out of the way. Kicked G-34 Mercenary. Kicked G-34 Mercenary out of the way. Kicked G-34 Mercenary. Kicked G-34 Mercenary out of the way. Kicked G-34 Mercenary. Drone Bay destroyed. Kicked G-34 Mercenary. Rocket Launcher destroyed. Hvy. Assault Rifle destroyed. MW%H9YFVV X=,Q/SSDNYVW Map ----- +----------------------------------------------------+ | | | | | | | | | ????????????????????????????????????????????????? | | ????????????????????????????????????????????????? | | ????????????????????????????????????????????????? | | ????????????????????????????????????????????????? | | ????????????????????????????????????????????????? | | ????????????????????????????????????????????????? | | ????????????????????????????????????????????????? | | ????????????????????????????????????????????????? | | ????????????????????????????????????????????????? | | ????????????????????????????????????????????????? | | ????????????????????????????????????????????????? | | ????????????????????????????????????????????????? | | ????????????????????????????????????????????????? | | ????????????????????????????????????????????????? | | ????????????????????????????????????????????????? | | ????????????????????????????????????????????????? | | ??????????????????????#####?????????????????????? | | ??????????????????????#"""#?????????????????????? | | ??????????????????????#" "#?????????????????????? | | ??????????????????????#"g"#?????????????????????? | | ??????????????????????#"g"#?????????????????????? | | ??????????????????????#^@^#?????????????????????? | | ??????????????????????##g##?????????????????????? | | ???????????????????????# #??????????????????????? | | ???????????????????????# #?#####????????????????? | | ???????????????????????# #?# #????????????????? | | ???????????????????????# ### ##### ##???????? | | ???????????????????????# #???????? | | ???????????????????????# #???????? | | ???????????????????????# ###############???????? | | ????????#####??????????# #?????????????????????? | | ????????# #??????????# #?????????????????????? | | ????????# ############ #######???????????????? | | ????????# ????????? | | ????????# ????????? | | ????????# ????????? | | ????????###############################?????????? | | ????????????????????????????????????????????????? | | ????????????????????????????????????????????????? | | ????????????????????????????????????????????????? | | ????????????????????????????????????????????????? | | ????????????????????????????????????????????????? | | ????????????????????????????????????????????????? | | ????????????????????????????????????????????????? | | ????????????????????????????????????????????????? | | ????????????????????????????????????????????????? | +----------------------------------------------------+ Best States ------------- Heat Dissipation 28 Energy Generation 10 Energy Capacity 250 Matter Stores 300 Matter Capacity 300 Sight Range 16 Terrain Scan Range 16 Terrain Scan Density 10 Armor Coverage 225 Evasion (%) 55 Item Schematics ----------------- Cesium-ion Thruster | -9/Materials | Scanalyzed Robot Schematics ------------------ None Fabricated ------------ Nothing Alien Tech Used ----------------- None Achievements -------------- Backstab Challenges ------------ None Game ------ Seed BombardmentSensorCarapace Manual? 0 Play Time 00:15:46 Cumulative 2.0 hours Start 2024.04.01 @ 20:45:43 End 2024.04.01 @ 21:01:07 Sessions 1 Manual Loads 0 Difficulty Rogue Special Mode None Game No. 5 Rogue 5 Adventurer 0 Explorer 0 Win Type - Total 0 Types 0/0/0/0/0/0/0/0/0 Lore% 7 Gallery% 5 Achievement% 6 Wizard Run 0 Options --------- Layout 1 ASCII 0 Keyboard 0 Movement Arrows Keybinds 0 Fullscreen 1 Font 24/Smallcaps Map View 50x35 Zoom Use 0% Tactical HUD 0 Map Filters NONE Filters NONE Steam 1 RUN: 16cb78e5-d07a-4bee-9f72-218a3fc96525